[Event "German Bundesliga 2021-22"]
[Site "Germany"]
[Date "2022.04.30"]
[Round "5.12"]
[White "Saric, Ivan"]
[Black "Neef, Maximilian"]
[Result "1-0"]
[ECO "C10"]
[WhiteElo "2678"]
[BlackElo "2504"]
[Annotator "TA"]
[PlyCount "119"]
[EventDate "2022.03.05"]
[EventType "team-tourn"]
[EventCountry "GER"]
[SourceTitle "playchess.com"]
[Source "ChessBase"]
[SourceQuality "1"]
[TimeControl "40/5400+30:1800+30"]

{[%evp 18,119,29,29,29,25,39,31,40,8,36,43,46,41,59,45,62,31,47,37,47,29,45,35,34,33,45,18,25,28,23,0,38,46,40,45,50,56,61,0,0,0,0,0,6,14,12,7,17,6,16,7,18,0,0,0,0,0,0,0,0,0,0,0,0,0,0,0,0,0,0,0,0,0,39,45,61,60,49,40,65,62,160,131,671,647,559,522,12836,12836,12841,12841,12841,12842,12841,12841,12845,12845,12845,12845,12850,27999,27999,27999]} 1. e4 {[%emt 0:00:00]} e6 {[%emt 0:00:00]} 2. d4 {[%emt 0:00:00]} d5 {[%emt 0:00:00]} 3. Nc3 {[%emt 0:00:00]} dxe4 {[%emt 0:00:00]} 4. Nxe4 {[%emt 0:00:00]} Bd7 {[%emt 0:00:00]} 5. Nf3 {[%emt 0:00:00]} Bc6 {[%emt 0:00:00]} 6. Bd3 {[%emt 0:00:00]} Nd7 {[%emt 0:00:00]} 7. O-O {[%emt 0:00:00]} Ngf6 {[%emt 0:00:00]} 8. Re1 {[%emt 0:00:00][%cal Bf1e1,Be1e4,Be4g4][%mdl 32]} Nxe4 {[%emt 0:00:00] 8...Nxe4 scores better than 8...Be7.} 9. Bxe4 {[%emt 0:00:00]} Bxe4 {[%emt 0:00:00]} 10. Rxe4 {[%emt 0:00:00]} Be7 {[%emt 0:00:00] C10: French with 3 Nc3: Unusual Black 3rd moves and 3...dxe4.} 11. Rg4 $5 {[%emt 0:00:00][%mdl 4] An interesting side line.} Bf6 {[%emt 0:00:00]} 12. h4 {[%emt 0:00:00] [#]} Qe7 $146 {[%emt 0:05:04] White is slightly better.} ({Predecessor:} 12... c6 13. Qe2 Qa5 14. c4 O-O 15. Bd2 Qf5 16. Re4 h5 17. Rd1 Rfd8 18. Bg5 Bxg5 19. Nxg5 {1-0 (34) Ivic,V (2610)-Markus,R (2627) Belgrade 2022}) 13. c4 {[%emt 0:04:09]} O-O-O {[%emt 0:09:53][%cal Od7e5]} (13... c5 $5 {[%cal Rc5d4]}) 14. Qa4 {[%emt 0:04:16]} Kb8 {[%emt 0:05:01]} 15. Be3 {[%emt 0:03:12]} h5 {[%emt 0:11:49]} 16. Re4 {[%emt 0:01:04]} Nb6 {[%emt 0:03:18]} 17. Qb3 {[%emt 0:10:07]} (17. Qc2 $5 {[%cal Rd4d5]}) 17... Qd7 {[%emt 0:08:12]} 18. Ne5 {[%emt 0:04:44] Against Qc6} Bxe5 {[%emt 0:02:01]} 19. Rxe5 {[%emt 0:00:20]} Qa4 {[%emt 0:07:19]} 20. Qxa4 {[%emt 0:10:16]} Nxa4 {[%emt 0:00:19]} 21. b3 {[%emt 0:00:13]} Nb6 {[%emt 0:00:24][%cal Ba4b6,Bb6c8,Bc8e7,Be7g6][%mdl 32]} 22. f3 {[%emt 0:14:18]} Nc8 {[%emt 0:06:41]} 23. Re1 {[%emt 0:02:14]} b6 {[%emt 0:06:34]} 24. Bf2 {[%emt 0:03:39]} Ne7 {[%emt 0:09:33]} 25. d5 {[%emt 0:01:30]} Ng6 {[%emt 0:01:31]} 26. Rg5 {[%emt 0:00:04]} exd5 {[%emt 0:06:10]} 27. cxd5 {[%emt 0:00:16]} Rh6 {[%emt 0:01:31]} 28. Bg3 {[%emt 0:05:45] White is more active.} ({Better is} 28. Re4 $1 $14) 28... Kb7 $11 {[%emt 0:05:57]} 29. Rf5 {[%emt 0:10:03]} Rd7 {[%emt 0:03:05]} 30. b4 {[%emt 0:05:07]} a6 {[%emt 0:02:35]} 31. a4 {[%emt 0:00:43][%cal Od5d6]} f6 {[%emt 0:00:33]} 32. d6 {[%emt 0:00:13] Against Ne7} cxd6 {[%emt 0:00:29]} 33. Rd5 {[%emt 0:00:17]} Rh8 {[%emt 0:05:01]} (33... Kc6 {looks sharper.} 34. Red1 Ne5 35. b5+ axb5 36. axb5+ Kc7) 34. Red1 {[%emt 0:00:48]} Rhd8 {[%emt 0:01:17]} 35. Rxh5 {[%emt 0:01:46]} d5 {[%emt 0:00:04]} 36. Rh7 {[%emt 0:06:30]} d4 {[%emt 0:00:54]} 37. h5 {[%emt 0:06:05]} Nf8 {[%emt 0:00:59]} 38. Rh8 {[%emt 0:00:04]} Ne6 {[%emt 0:00:30]} 39. Rxd8 {[%emt 0:00:04]} Nxd8 {[%emt 0:01:09][%mdl 4096] Endgame KRB-KRN} 40. Be1 {[%emt 0:02:44]} Nc6 {[%emt 0:01:29]} 41. Kf2 {[%emt 0:31:43]} b5 {[%emt 0:00:00]} 42. axb5 {[%emt 0:00:00]} axb5 {[%emt 0:00:00]} 43. f4 {[%emt 0:00:00]} f5 {[%emt 0:00:00]} 44. Kf3 {[%emt 0:00:00]} Rd8 {[%emt 0:08:29]} 45. Bf2 {[%emt 0:00:00]} Ra8 {[%emt 0:04:53]} 46. Bxd4 {[%emt 0:00:00]} Rd8 {[%emt 0:02:50]} 47. Ke3 {[%emt 0:00:00] Strongly threatening Rd2.} Nxb4 {[%emt 0:00:59] [#] White must now prevent ...Nc2+.} 48. Ke2 {[%emt 0:00:00]} Re8+ {[%emt 0:12:53]} 49. Be5 {[%emt 0:00:00] Threatens to win with Rd7+.} Nc6 {[%emt 0:00:30]} ({Black should try} 49... Rh8 $1 $14) 50. Rd7+ $16 {[%emt 0:00:00]} Ka6 $2 {[%emt 0:00:47][%mdl 8192] A mistake that costs the game.} (50... Kb6 $16) 51. Rxg7 $18 {[%emt 0:00:00]} Nxe5 {[%emt 0:00:05]} 52. fxe5 {[%emt 0:00:00] h6 is the strong threat.} Rxe5+ {[%emt 0:00:06] KR-KR} 53. Kf3 {[%emt 0:00:00]} b4 {[%emt 0:00:57] [#]} 54. h6 $1 {[%emt 0:00:00]} Re1 {[%emt 0:02:48]} 55. Rg3 {[%emt 0:00:00]} Re8 {[%emt 0:02:21]} 56. Kf4 {[%emt 0:00:00]} Rf8 {[%emt 0:00:51]} 57. Rh3 {[%emt 0:00:00]} Rh8 {[%emt 0:00:38]} 58. Kxf5 {[%emt 0:00:00]} b3 {[%emt 0:00:05]} 59. Rxb3 {[%emt 0:00:00]} Rxh6 {[%emt 0:00:05]} 60. g4 {[%emt 0:00:00] Weighted Error Value: White=0.05 (flawless) /Black=0.26 (precise)} 1-0

[Event "German Bundesliga 2021-22"]
[Site "Germany"]
[Date "2022.04.30"]
[Round "5.12"]
[White "Kollars, Dmitrij"]
[Black "Bruedigam, Martin"]
[Result "1-0"]
[ECO "C50"]
[WhiteElo "2635"]
[BlackElo "2386"]
[Annotator "TA"]
[PlyCount "97"]
[EventDate "2022.03.05"]
[EventType "team-tourn"]
[EventCountry "GER"]
[SourceTitle "playchess.com"]
[Source "ChessBase"]
[SourceQuality "1"]
[TimeControl "40/5400+30:1800+30"]

{[%evp 20,97,11,4,58,52,76,42,56,62,63,48,87,76,97,91,124,128,136,139,149,133,183,193,180,154,167,160,174,160,211,204,208,199,196,167,162,169,169,156,160,149,187,145,150,127,183,174,174,159,174,134,141,130,216,154,220,217,215,207,223,222,232,225,261,261,427,435,643,635,1059,1043,1053,1009,1000,904,825,656,5110,213]} 1. e4 {[%emt 0:00:00]} e5 {[%emt 0:00:00]} 2. Nf3 {[%emt 0:00:00]} Nc6 {[%emt 0:00:00]} 3. Bc4 {[%emt 0:00:00]} Bc5 {[%emt 0:00:00]} 4. d3 {[%emt 0:00:00]} Nf6 {[%emt 0:00:00]} 5. Nc3 {[%emt 0:00:00]} a6 {[%emt 0:00:00]} 6. Bg5 {[%emt 0:00:00]} h6 {[%emt 0:00:00]} 7. Bxf6 {[%emt 0:00:00]} Qxf6 8. Nd5 Qd8 {[%emt 0:00:00]} 9. c3 {[%emt 0:00:00]} d6 {[%emt 0:00:00]} 10. d4 {[%emt 0:00:00]} Ba7 {[%emt 0:00:00] The main line 10...Ba7 scores better than 10...exd4.} 11. dxe5 {[%emt 0:00:00]} dxe5 {[%emt 0:51:00] C50: Hungarian Defence and Giuoco Pianissimo.} ({Black should play} 11... Nxe5 $11 12. Nxe5 dxe5) 12. Qe2 $14 {[%emt 0:00:00]} Bc5 {[%emt 0:05:30]} 13. Rd1 {[%emt 0:00:00][%cal Od5b6] Strongly threatening Nb6!} Bd6 {[%emt 0:03:30] White is slightly better.} 14. O-O {[%emt 0:00:00]} O-O {[%emt 0:02:30] [#]} 15. a4 $146 {[%emt 0:00:00]} ({Predecessor:} 15. Rd2 Be6 16. Rfd1 Qe8 17. b4 Rd8 18. Nh4 Qd7 19. Rd3 Ne7 20. Rg3 Bxd5 21. Bxd5 {1-0 (33) Balajayeva,K (2358)-Olsarova,K (2264) Antalya 2019}) 15... a5 {[%emt 0:04:30]} 16. Rd2 {[%emt 0:16:30] White is much more active. The black rooks are badly placed.} Bg4 {[%emt 0:16:10]} 17. Rfd1 {[%emt 0:03:30]} Bxf3 {[%emt 0:01:09]} 18. Qxf3 {[%emt 0:00:30][%cal Od5b6]} Qg5 {[%emt 0:00:08]} 19. g3 {[%emt 0:04:30]} Rad8 {[%emt 0:06:56]} 20. Ne3 {[%emt 0:21:30][%cal Bd5e3,Be3c4,Bc4a5][%mdl 32]} Kh8 {[%emt 0:05:20]} (20... Bc5 $16 {was called for.}) 21. Bd5 $18 {[%emt 0:06:30]} (21. Bxf7 $2 Qe7 22. Rd5 b6 $19) 21... Qe7 {[%emt 0:03:17]} 22. Bxc6 {[%emt 0:08:30]} bxc6 {[%emt 0:00:04]} 23. Nc4 {[%emt 0:00:30]} Qe6 {[%emt 0:00:14]} 24. Qe2 {[%emt 0:09:30]} f5 {[%emt 0:00:26]} (24... f6 $16 25. Kg2 (25. Nxa5 Ra8 $16) 25... c5) 25. Nxa5 {[%emt 0:02:30]} Ra8 {[%emt 0:01:33] [#]} 26. exf5 $1 {[%emt 0:03:30]} Qxf5 {[%emt 0:00:12]} 27. Nc4 {[%emt 0:04:30]} Rxa4 {[%emt 0:00:26]} 28. Nxd6 {[%emt 0:00:30]} cxd6 {[%emt 0:00:07]} 29. Rxd6 {[%emt 0:00:00]} Re4 {[%emt 0:00:23]} 30. Qd2 {[%emt 0:00:00]} Qf3 {[%emt 0:01:07] [#] And now ...Re2 would win.} 31. Re1 {[%emt 0:01:30] Inhibits Re2.} Rxe1+ {[%emt 0:01:13]} 32. Qxe1 $16 {[%emt 0:00:30][%mdl 4096] Endgame KQR-KQR} Ra8 {[%emt 0:00:00]} (32... Kh7 $16 33. c4 Ra8) 33. Qd1 $18 {[%emt 0:02:55]} Qe4 {[%emt 0:00:40]} 34. h4 {[%emt 0:07:12]} c5 {[%emt 0:00:04]} 35. Rd2 {[%emt 0:03:38]} c4 {[%emt 0:00:07]} 36. Kh2 {[%emt 0:00:04]} Qc6 {[%emt 0:01:11]} (36... Kh7 $16 37. h5 Rc8) 37. Qg4 {[%emt 0:01:23]} Rf8 {[%emt 0:00:31]} (37... Re8 $16 38. Kg1 e4) 38. Kg1 {[%emt 0:02:19]} Ra8 {[%emt 0:00:15]} 39. Rd1 {[%emt 0:01:06] Prevents Ra1.} Kg8 {[%emt 0:00:48]} 40. Qf5 {[%emt 0:02:22]} Re8 {[%emt 0:00:00]} 41. Rd7 {[%emt 0:00:00] White threatens Qf7+ and mate.} Qf6 {[%emt 0:11:39] Inhibits Qf7+.} 42. Qe4 {[%emt 0:00:00]} Qe6 $2 {[%emt 0:07:46]} (42... Rc8 {was necessary.} 43. Rd5 Qb6 44. Qxe5 Rf8) 43. Rc7 {[%emt 0:00:00] White is clearly winning.} Rc8 {[%emt 0:02:58]} (43... Rd8 $142 44. Qxc4 Qxc4 45. Rxc4 Kf7) 44. Rxc8+ {[%emt 0:00:01]} Qxc8 {[%emt 0:00:03]} 45. Qxe5 {[%emt 0:00:30]} Qc6 {[%emt 0:00:24]} 46. b4 {[%emt 0:00:30]} cxb3 {[%emt 0:01:21]} 47. Qb8+ {[%emt 0:00:30]} Kh7 {[%emt 0:00:04]} 48. Qxb3 {[%emt 0:00:00]} g5 {[%emt 0:00:20]} 49. Qf7+ {[%emt 0:00:00] Weighted Error Value: White=0.09 (flawless) /Black=0.34} 1-0

[Event "German Bundesliga 2021-22"]
[Site "Germany"]
[Date "2022.04.30"]
[Round "5.12"]
[White "Lemmers, Oscar"]
[Black "Neiksans, Arturs"]
[Result "1/2-1/2"]
[ECO "B22"]
[WhiteElo "2346"]
[BlackElo "2577"]
[Annotator "TA"]
[PlyCount "51"]
[EventDate "2022.03.05"]
[EventType "team-tourn"]
[EventCountry "GER"]
[SourceTitle "playchess.com"]
[Source "ChessBase"]
[SourceQuality "1"]
[TimeControl "40/5400+30:1800+30"]

{[%evp 16,51,16,16,21,0,0,0,0,0,0,0,0,-13,7,-10,0,18,15,24,75,62,58,20,40,5,15,5,31,20,62,9,14,10,17,4,2,6]} 1. e4 {[%emt 0:00:00][%cal Be2e4,Be4e5][%mdl 32]} c5 {[%emt 0:00:00][%cal Bc7c5,Bc5d4][%mdl 32]} 2. c3 {[%emt 0:00:00]} Nf6 {[%emt 0:00:00]} 3. e5 {[%emt 0:00:00]} Nd5 {[%emt 0:00:00]} 4. d4 {[%emt 0:00:00]} cxd4 {[%emt 0:00:00]} 5. Nf3 {[%emt 0:00:00]} d6 {[%emt 0:00:00]} 6. Bc4 {[%emt 0:00:00]} Nb6 {[%emt 0:00:00]} 7. Bb3 {[%emt 0:00:00]} dxe5 {[%emt 0:00:00]} 8. Nxe5 {[%emt 0:00:00]} e6 {[%emt 0:00:00]} 9. cxd4 {[%emt 0:00:00]} Nc6 {[%emt 0:05:49] B22: Sicilian: 2 c3.} 10. Nf3 {[%emt 0:00:00]} Be7 {[%emt 0:01:39]} 11. Nc3 {[%emt 0:00:00]} O-O {[%emt 0:06:43]} 12. O-O {[%emt 0:00:00]} Bf6 {[%emt 0:19:22]} 13. Be3 {[%emt 0:00:51]} Nd5 {[%emt 0:00:12]} 14. Ne4 {[%emt 0:04:56]} Be7 {[%emt 0:00:33]} 15. Rc1 {[%emt 0:04:47]} Qb6 {[%emt 0:01:42] [#]} 16. Nc3 $146 {[%emt 0:06:27]} ({Predecessor:} 16. Qe2 Bd7 17. Nc3 Nxe3 18. fxe3 Rac8 19. Bc2 Qa5 20. Bb1 Qh5 21. Qf2 b6 22. Rcd1 Rcd8 23. a3 {½-½ (47) Conquest,S (2563)-Nedev,T (2511) Novi Sad 2009}) 16... Rd8 {[%emt 0:10:06]} 17. Qe2 {[%emt 0:11:48]} Qa5 {[%emt 0:24:15]} (17... Bf6 $11 {remains equal.}) 18. Nxd5 $16 {[%emt 0:16:10]} exd5 {[%emt 0:00:15]} 19. Bd2 {[%emt 0:12:08]} (19. Bg5 {is interesting.} Bxg5 20. Nxg5 Bf5 21. Nxf7 Kxf7 22. Rc5) 19... Bb4 {[%emt 0:08:23]} 20. Bxb4 {[%emt 0:13:53]} Qxb4 {[%emt 0:00:09]} 21. Qd3 {[%emt 0:00:48]} g6 {[%emt 0:02:19]} (21... Bg4 $5 {[%cal Rg4f3]}) 22. Rc5 {[%emt 0:02:58]} Bf5 {[%emt 0:03:56]} 23. Qc3 {[%emt 0:01:51]} (23. Qe3 $14) 23... Qxc3 $11 {[%emt 0:00:10] The position is equal.} 24. bxc3 {[%emt 0:00:53]} Be6 {[%emt 0:10:16]} 25. Ba4 {[%emt 0:01:04]} Rd6 {[%emt 0:01:11]} 26. Bxc6 {[%emt 0:03:39] Weighted Error Value: White=0.12 (very precise) /Black=0.11 (very precise)} 1/2-1/2

[Event "German Bundesliga 2021-22"]
[Site "Germany"]
[Date "2022.04.30"]
[Round "5.13"]
[White "Dardha, Daniel"]
[Black "Klein, Felix"]
[Result "1-0"]
[ECO "A13"]
[WhiteElo "2541"]
[BlackElo "2288"]
[Annotator "TA"]
[PlyCount "95"]
[EventDate "2022.03.05"]
[EventType "team-tourn"]
[EventCountry "GER"]
[SourceTitle "playchess.com"]
[Source "ChessBase"]
[SourceQuality "1"]
[TimeControl "40/5400+30:1800+30"]

{[%evp 23,94,46,42,17,33,24,31,20,37,43,50,42,55,19,62,60,63,41,47,17,35,31,33,33,40,45,45,41,42,26,26,14,18,18,9,10,21,27,38,31,60,24,103,94,106,101,137,125,156,159,710,627,29980,29981,29981,29982,29982,29983,29983,29984,29983,29984,29985,29986,29986,29987,29987,29988,29997,29998,29998,29999,29999]} 1. c4 {[%emt 0:00:00]} e6 {[%emt 0:00:00]} 2. g3 {[%emt 0:00:00]} d5 {[%emt 0:00:00]} 3. Bg2 {[%emt 0:00:00]} Nf6 {[%emt 0:00:00]} 4. d4 {[%emt 0:00:00]} c6 {[%emt 0:00:00]} 5. Nd2 {[%emt 0:00:00]} Nbd7 {[%emt 0:00:00]} 6. Ngf3 {[%emt 0:00:00]} Bd6 {[%emt 0:00:00]} 7. Qc2 {[%emt 0:00:00]} O-O {[%emt 0:00:00]} 8. O-O {[%emt 0:00:00]} e5 {[%emt 0:04:12]} 9. cxd5 {[%emt 0:00:00]} cxd5 {[%emt 0:01:32]} 10. dxe5 {[%emt 0:00:00]} Nxe5 {[%emt 0:00:03]} 11. Nxe5 {[%emt 0:00:00]} Bxe5 {[%emt 0:00:28]} 12. Nf3 {[%emt 0:00:00]} Bd6 {[%emt 0:00:30]} 13. Be3 {[%emt 0:00:00] E01: Catalan: Early deviations.} Be6 {[%emt 0:03:09]} 14. Bd4 {[%emt 0:01:08]} Ne4 {[%emt 0:04:31] Inhibits Ng5.} 15. Rad1 {[%emt 0:01:47] White is slightly better.} Qe7 {[%emt 0:03:48] [#]} 16. Nd2 $146 {[%emt 0:02:36]} ({Predecessor:} 16. Be3 f5 17. Nd4 Bd7 18. Qb3 Bc6 19. Nb5 Bb8 20. Nc3 Kh8 21. Nxd5 Qe8 22. Nc3 {1-0 (34) Pinheiro,J (2336)-Bochecha,L Evora 2006}) 16... f5 {[%emt 0:05:01]} 17. e3 {[%emt 0:06:27]} Rfd8 {[%emt 0:15:25]} 18. f3 {[%emt 0:06:21]} Nf6 {[%emt 0:02:02]} 19. Nb3 {[%emt 0:02:52]} Rac8 {[%emt 0:10:12]} 20. Qf2 {[%emt 0:00:07]} b6 {[%emt 0:04:44]} 21. Nc1 {[%emt 0:00:44]} Bf7 {[%emt 0:08:59]} 22. Bh3 {[%emt 0:01:31]} g6 {[%emt 0:03:18]} 23. Nd3 {[%emt 0:01:26]} Rc7 {[%emt 0:08:22]} 24. Rc1 {[%emt 0:09:36]} Rdc8 {[%emt 0:00:48]} 25. Rxc7 {[%emt 0:00:17]} Rxc7 {[%emt 0:00:10]} 26. Rd1 {[%emt 0:00:33]} Nd7 {[%emt 0:03:07][%cal Bf6d7,Bd7c5,Bc5e4][%mdl 32]} 27. f4 {[%emt 0:03:37]} Nc5 {[%emt 0:08:53]} 28. Qe2 {[%emt 0:05:18]} Ne4 {[%emt 0:07:23]} 29. Bg2 {[%emt 0:02:12]} h5 {[%emt 0:00:42]} 30. Ne5 {[%emt 0:05:08][%cal Bd3e5,Be5f7,Bf7h6,Bh6f5,Bf5h4][%mdl 32]} Bc5 {[%emt 0:01:09]} 31. Bxe4 {[%emt 0:04:23]} dxe4 {[%emt 0:02:30]} 32. Bc3 {[%emt 0:01:17]} Bb4 {[%emt 0:01:34]} (32... Kh7 $11 {keeps the balance.}) 33. Nxf7 $16 {[%emt 0:01:24] White is more active.} Bxc3 {[%emt 0:02:48]} 34. Nh6+ {[%emt 0:01:13]} Kh7 {[%emt 0:00:38] [#]} 35. Nxf5 {[%emt 0:00:19][%mdl 512]} Qe6 {[%emt 0:00:13]} (35... Qc5 36. bxc3) 36. Nh4 {[%emt 0:02:23] Strongly threatening f5.} Qxa2 $2 {[%emt 0:01:21] Black cannot hold the game after this.} (36... Bf6 $16) 37. f5 $18 {[%emt 0:00:06][%cal Bf4f5,Bf5g6][%mdl 32]} Qxb2 {[%emt 0:00:12]} 38. fxg6+ {[%emt 0:00:23] White mates.} Kh6 {[%emt 0:00:16]} 39. Qf1 {[%emt 0:02:42]} Be5 {[%emt 0:01:13]} 40. Qf8+ {[%emt 0:01:54]} Kg5 {[%emt 0:00:07]} 41. g7 {[%emt 0:40:28]} Rxg7 {[%emt 0:00:00]} 42. Rf1 {[%emt 0:00:00]} Qc3 {[%emt 0:00:00]} 43. Rf5+ {[%emt 0:00:00]} Kg4 {[%emt 0:00:00]} 44. Kg2 {[%emt 0:00:00][%csl Gg2][%cal Rh2h3]} Qd2+ {[%emt 0:00:00]} 45. Rf2 {[%emt 0:00:00][%csl Gf2,Gh4][%cal Rf8f5]} Qd7 {[%emt 0:00:00] [#]} 46. Qf4+ $3 {[%emt 0:00:00][%mdl 512]} Bxf4 {[%emt 0:00:00]} 47. exf4 {[%emt 0:00:00][%csl Gg2][%cal Rh2h3]} e3 {[%emt 0:02:59]} 48. h3# {[%emt 0:00:00] Weighted Error Value: White=0.06 (flawless) /Black=0.33} 1-0